[Event "Titled Tuesday Blitz May 23 Early 2023"]
[White "Sovetbekova, Nurai"]
[Black "Hamley, Ryan"]
[WhiteFideId "13801910"]
[BlackFideId "30959497"]
[WhiteElo "1857"]
[BlackElo "2507"]
[Result "0-1"]
[Round "04"]
[TimeControl "180+2"]
[Date "2023.05.23"]
[WhiteClock "0:00:00"]
[BlackClock "0:00:09"]

1. d4 {[%clk 0:02:58]}  Nf6 {[%clk 0:02:46]} 2. c4 {[%clk 0:02:56]}  g6 {[%clk 0:02:45]} 3. Nc3 {[%clk 0:02:53]}  Bg7 {[%clk 0:02:46]} 4. e4 {[%clk 0:02:50]}  d6 {[%clk 0:02:46]} 5. Nf3 {[%clk 0:02:45]}  O-O {[%clk 0:02:46]} 6. Be2 {[%clk 0:02:44]}  Nbd7 {[%clk 0:02:46]} 7. O-O {[%clk 0:02:41]}  e5 {[%clk 0:02:44]} 8. Be3 {[%clk 0:02:34]}  Qe7 {[%clk 0:02:43]} 9. Qc2 {[%clk 0:02:18]}  c6 {[%clk 0:02:39]} 10. Rad1 {[%clk 0:02:16]}  a5 {[%clk 0:02:33]} 11. b3 {[%clk 0:02:09]}  Ng4 {[%clk 0:02:21]} 12. Bg5 {[%clk 0:02:06]}  Ngf6 {[%clk 0:02:08]} 13. Rfe1 {[%clk 0:01:49]}  h6 {[%clk 0:02:08]} 14. Bh4 {[%clk 0:01:47]}  g5 {[%clk 0:02:06]} 15. Bg3 {[%clk 0:01:47]}  Nh5 {[%clk 0:02:04]} 16. dxe5 {[%clk 0:01:33]}  dxe5 {[%clk 0:01:57]} 17. Nd2 {[%clk 0:01:04]}  Nf4 {[%clk 0:01:52]} 18. Bg4 {[%clk 0:00:58]}  Nc5 {[%clk 0:01:47]} 19. Bxc8 {[%clk 0:00:57]}  Raxc8 {[%clk 0:01:48]} 20. Nf1 {[%clk 0:00:57]}  Rfd8 {[%clk 0:01:38]} 21. Ne3 {[%clk 0:00:57]}  Qe6 {[%clk 0:01:34]} 22. Bxf4 {[%clk 0:00:52]}  exf4 {[%clk 0:01:31]} 23. Nf5 {[%clk 0:00:51]}  Be5 {[%clk 0:01:25]} 24. Ne2 {[%clk 0:00:35]}  Kh7 {[%clk 0:01:19]} 25. Ned4 {[%clk 0:00:31]}  Qf6 {[%clk 0:01:20]} 26. Nf3 {[%clk 0:00:27]}  Ne6 {[%clk 0:01:16]} 27. Rxd8 {[%clk 0:00:16]}  Rxd8 {[%clk 0:01:13]} 28. Rd1 {[%clk 0:00:17]}  Rxd1+ {[%clk 0:00:38]} 29. Qxd1 {[%clk 0:00:17]}  Ng7 {[%clk 0:00:38]} 30. Nxg7 {[%clk 0:00:09]}  Kxg7 {[%clk 0:00:38]} 31. Qd7 {[%clk 0:00:09]}  Bd6 {[%clk 0:00:39]} 32. h3 {[%clk 0:00:07]}  Qe7 {[%clk 0:00:38]} 33. Qf5 {[%clk 0:00:06]}  Qe6 {[%clk 0:00:33]} 34. Qxa5 {[%clk 0:00:06]}  Qxe4 {[%clk 0:00:32]} 35. Qb6 {[%clk 0:00:04]}  Qe7 {[%clk 0:00:28]} 36. Qa5 {[%clk 0:00:02]}  Bc5 {[%clk 0:00:27]} 37. Qc3+ {[%clk 0:00:02]}  Kg8 {[%clk 0:00:26]} 38. Qc2 {[%clk 0:00:02]}  Qf6 {[%clk 0:00:24]} 39. a4 {[%clk 0:00:01]}  h5 {[%clk 0:00:18]} 40. Qe2 {[%clk 0:00:02]}  g4 {[%clk 0:00:18]} 41. Nd2 {[%clk 0:00:02]}  f3 {[%clk 0:00:15]} 42. gxf3 {[%clk 0:00:02]}  gxh3 {[%clk 0:00:12]} 43. f4 {[%clk 0:00:02]}  Qg6+ {[%clk 0:00:12]} 44. Kf1 {[%clk 0:00:01]}  Qg2+ {[%clk 0:00:12]} 45. Ke1 {[%clk 0:00:02]}  h2 {[%clk 0:00:09]} 46. Qe8+ {[%clk 0:00:00]}  Bf8 {[%clk 0:00:09]} 0-1


[Site "https://www.chess.com"]

[Event "Titled Tuesday Blitz May 23 Early 2023"]
[White "Hajiyev, Kanan"]
[Black "Yanayt, Eugene"]
[WhiteFideId "13404148"]
[BlackFideId "2020165"]
[WhiteElo "2103"]
[BlackElo "2083"]
[Result "0-1"]
[Round "04"]
[TimeControl "180+2"]
[Date "2023.05.23"]
[WhiteClock "0:00:32"]
[BlackClock "0:00:18"]

1. d4 {[%clk 0:02:58]}  Nf6 {[%clk 0:02:29]} 2. c4 {[%clk 0:02:58]}  g6 {[%clk 0:02:25]} 3. Nf3 {[%clk 0:02:58]}  Bg7 {[%clk 0:02:23]} 4. g3 {[%clk 0:02:58]}  O-O {[%clk 0:02:19]} 5. Bg2 {[%clk 0:02:58]}  d6 {[%clk 0:02:18]} 6. O-O {[%clk 0:02:58]}  Nc6 {[%clk 0:02:15]} 7. b3 {[%clk 0:02:59]}  e5 {[%clk 0:02:15]} 8. Bb2 {[%clk 0:03:00]}  Nd7 {[%clk 0:02:11]} 9. dxe5 {[%clk 0:02:59]}  Ncxe5 {[%clk 0:02:10]} 10. Nc3 {[%clk 0:02:59]}  Re8 {[%clk 0:02:01]} 11. Qd2 {[%clk 0:02:58]}  Nxf3+ {[%clk 0:01:52]} 12. exf3 {[%clk 0:02:59]}  Nc5 {[%clk 0:01:49]} 13. Nd5 {[%clk 0:02:54]}  c6 {[%clk 0:01:40]} 14. Bxg7 {[%clk 0:02:53]}  Kxg7 {[%clk 0:01:39]} 15. Qd4+ {[%clk 0:02:44]}  f6 {[%clk 0:01:37]} 16. Ne3 {[%clk 0:02:24]}  Qc7 {[%clk 0:01:13]} 17. Rad1 {[%clk 0:02:23]}  Rd8 {[%clk 0:01:11]} 18. f4 {[%clk 0:02:22]}  Ne6 {[%clk 0:01:05]} 19. Qc3 {[%clk 0:02:16]}  c5 {[%clk 0:01:00]} 20. f5 {[%clk 0:01:51]}  Nd4 {[%clk 0:00:57]} 21. fxg6 {[%clk 0:01:52]}  Ne2+ {[%clk 0:00:56]} 22. Kh1 {[%clk 0:01:49]}  Nxc3 {[%clk 0:00:56]} 23. Rd3 {[%clk 0:01:48]}  Ne2 {[%clk 0:00:55]} 24. gxh7 {[%clk 0:01:47]}  Nd4 {[%clk 0:00:48]} 25. Nd5 {[%clk 0:01:45]}  Qf7 {[%clk 0:00:45]} 26. Re1 {[%clk 0:01:38]}  Re8 {[%clk 0:00:35]} 27. Rxe8 {[%clk 0:01:34]}  Qxe8 {[%clk 0:00:35]} 28. Re3 {[%clk 0:01:35]}  Qxe3 {[%clk 0:00:31]} 29. fxe3 {[%clk 0:01:35]}  Kxh7 {[%clk 0:00:31]} 30. exd4 {[%clk 0:01:34]}  cxd4 {[%clk 0:00:32]} 31. Nxf6+ {[%clk 0:01:33]}  Kg6 {[%clk 0:00:31]} 32. Nd5 {[%clk 0:01:31]}  Bg4 {[%clk 0:00:25]} 33. Nf4+ {[%clk 0:01:30]}  Kh7 {[%clk 0:00:22]} 34. h3 {[%clk 0:01:30]}  Bd1 {[%clk 0:00:21]} 35. Bxb7 {[%clk 0:01:28]}  Re8 {[%clk 0:00:21]} 36. Kg2 {[%clk 0:01:24]}  Bc2 {[%clk 0:00:19]} 37. Kf3 {[%clk 0:01:18]}  d3 {[%clk 0:00:19]} 38. Nd5 {[%clk 0:00:52]}  d2 {[%clk 0:00:19]} 39. Nc3 {[%clk 0:00:42]}  d1=Q+ {[%clk 0:00:18]} 40. Nxd1 {[%clk 0:00:42]}  Bxd1+ {[%clk 0:00:18]} 41. Kf4 {[%clk 0:00:43]}  Re2 {[%clk 0:00:18]} 42. Bf3 {[%clk 0:00:32]}  Rf2 {[%clk 0:00:18]} 0-1


[Site "https://www.chess.com"]

[Event "Titled Tuesday Blitz May 23 Early 2023"]
[White "Sliwicki, Damian"]
[Black "Manon-og, Ramon Jr."]
[WhiteFideId "1127128"]
[BlackFideId "5200776"]
[WhiteElo "2030"]
[BlackElo "2312"]
[Result "1-0"]
[Round "04"]
[TimeControl "180+2"]
[Date "2023.05.23"]
[WhiteClock "0:01:47"]
[BlackClock "0:00:52"]

1. e4 {[%clk 0:03:00]}  c5 {[%clk 0:03:00]} 2. Nf3 {[%clk 0:02:59]}  d6 {[%clk 0:03:00]} 3. d4 {[%clk 0:02:58]}  cxd4 {[%clk 0:03:01]} 4. Qxd4 {[%clk 0:02:59]}  Nc6 {[%clk 0:03:01]} 5. Bb5 {[%clk 0:02:58]}  Bd7 {[%clk 0:03:01]} 6. Bxc6 {[%clk 0:02:59]}  Bxc6 {[%clk 0:03:01]} 7. Nc3 {[%clk 0:03:00]}  e5 {[%clk 0:02:58]} 8. Qd3 {[%clk 0:02:59]}  h6 {[%clk 0:02:57]} 9. Be3 {[%clk 0:02:58]}  Nf6 {[%clk 0:02:58]} 10. O-O-O {[%clk 0:02:58]}  Be7 {[%clk 0:02:58]} 11. Kb1 {[%clk 0:02:57]}  O-O {[%clk 0:02:57]} 12. g4 {[%clk 0:02:58]}  Nxg4 {[%clk 0:02:56]} 13. Rhg1 {[%clk 0:02:56]}  Nxe3 {[%clk 0:02:56]} 14. Qxe3 {[%clk 0:02:56]}  Kh8 {[%clk 0:02:55]} 15. Nxe5 {[%clk 0:02:56]}  Bf6 {[%clk 0:02:48]} 16. Ng4 {[%clk 0:02:56]}  Bh4 {[%clk 0:02:38]} 17. Nxh6 {[%clk 0:02:49]}  g6 {[%clk 0:02:06]} 18. Nf5 {[%clk 0:02:36]}  Bf6 {[%clk 0:01:53]} 19. Rxd6 {[%clk 0:02:35]}  Kg8 {[%clk 0:01:17]} 20. Rxd8 {[%clk 0:02:29]}  Raxd8 {[%clk 0:01:18]} 21. e5 {[%clk 0:02:17]}  Rfe8 {[%clk 0:01:14]} 22. Nh6+ {[%clk 0:01:52]}  Kf8 {[%clk 0:00:52]} 23. Qf4 {[%clk 0:01:47]} 1-0


[Site "https://www.chess.com"]

[Event "Titled Tuesday Blitz May 23 Early 2023"]
[White "Goldin, Roman"]
[Black "Tokman, Ariel"]
[WhiteFideId "2803860"]
[BlackFideId "117420"]
[WhiteElo "2312"]
[BlackElo "2263"]
[Result "0-1"]
[Round "04"]
[TimeControl "180+2"]
[Date "2023.05.23"]
[WhiteClock "0:00:00"]
[BlackClock "0:00:34"]

1. Nf3 {[%clk 0:02:58]}  c5 {[%clk 0:02:57]} 2. e4 {[%clk 0:02:56]}  Nc6 {[%clk 0:02:57]} 3. c3 {[%clk 0:02:56]}  Nf6 {[%clk 0:02:56]} 4. e5 {[%clk 0:02:56]}  Nd5 {[%clk 0:02:57]} 5. g3 {[%clk 0:02:56]}  d6 {[%clk 0:02:56]} 6. exd6 {[%clk 0:02:56]}  e6 {[%clk 0:02:56]} 7. Bg2 {[%clk 0:02:57]}  Bxd6 {[%clk 0:02:57]} 8. O-O {[%clk 0:02:57]}  O-O {[%clk 0:02:57]} 9. Na3 {[%clk 0:02:57]}  Be7 {[%clk 0:02:53]} 10. Re1 {[%clk 0:02:56]}  Bd7 {[%clk 0:02:47]} 11. Nc4 {[%clk 0:02:50]}  Qc7 {[%clk 0:02:43]} 12. d3 {[%clk 0:02:48]}  Rad8 {[%clk 0:02:38]} 13. Qe2 {[%clk 0:02:47]}  Bf6 {[%clk 0:02:31]} 14. Bg5 {[%clk 0:02:35]}  Nce7 {[%clk 0:02:15]} 15. h4 {[%clk 0:02:27]}  h6 {[%clk 0:02:12]} 16. Bxf6 {[%clk 0:02:25]}  Nxf6 {[%clk 0:02:13]} 17. Nfe5 {[%clk 0:02:24]}  Bc6 {[%clk 0:02:06]} 18. Nxc6 {[%clk 0:02:13]}  Nxc6 {[%clk 0:02:07]} 19. a4 {[%clk 0:02:10]}  Rfe8 {[%clk 0:01:29]} 20. Rad1 {[%clk 0:02:04]}  Nd5 {[%clk 0:01:22]} 21. f4 {[%clk 0:01:57]}  Nce7 {[%clk 0:01:16]} 22. Ne5 {[%clk 0:01:51]}  Nf5 {[%clk 0:01:16]} 23. Qf2 {[%clk 0:01:50]}  Nf6 {[%clk 0:01:14]} 24. g4 {[%clk 0:01:44]}  Nd6 {[%clk 0:01:07]} 25. g5 {[%clk 0:01:24]}  hxg5 {[%clk 0:01:08]} 26. hxg5 {[%clk 0:01:20]}  Nd5 {[%clk 0:01:08]} 27. g6 {[%clk 0:00:47]}  fxg6 {[%clk 0:00:58]} 28. Nxg6 {[%clk 0:00:19]}  Nf5 {[%clk 0:00:58]} 29. Be4 {[%clk 0:00:16]}  Qf7 {[%clk 0:00:53]} 30. Ne5 {[%clk 0:00:10]}  Qf6 {[%clk 0:00:47]} 31. Re2 {[%clk 0:00:04]}  Rf8 {[%clk 0:00:46]} 32. Rde1 {[%clk 0:00:04]}  Nh6 {[%clk 0:00:37]} 33. Qg3 {[%clk 0:00:03]}  Nxf4 {[%clk 0:00:35]} 34. Rf2 {[%clk 0:00:00]}  Nh3+ {[%clk 0:00:34]} 0-1


[Site "https://www.chess.com"]

[Event "Titled Tuesday Blitz May 23 Early 2023"]
[White "Lesbekova, Assel"]
[Black "Tanmay Jain"]
[WhiteFideId "13713248"]
[BlackFideId "45015481"]
[WhiteElo "1805"]
[BlackElo "2032"]
[Result "1-0"]
[Round "04"]
[TimeControl "180+2"]
[Date "2023.05.23"]
[WhiteClock "0:00:15"]
[BlackClock "0:00:00"]

1. e4 {[%clk 0:03:00]}  c5 {[%clk 0:02:59]} 2. Nf3 {[%clk 0:02:59]}  d6 {[%clk 0:02:59]} 3. Bb5+ {[%clk 0:02:59]}  Bd7 {[%clk 0:02:59]} 4. Bxd7+ {[%clk 0:02:59]}  Nxd7 {[%clk 0:02:59]} 5. O-O {[%clk 0:02:59]}  Ngf6 {[%clk 0:02:59]} 6. Qe2 {[%clk 0:02:59]}  g6 {[%clk 0:02:58]} 7. b3 {[%clk 0:02:57]}  Bg7 {[%clk 0:02:58]} 8. Bb2 {[%clk 0:02:57]}  O-O {[%clk 0:02:59]} 9. c4 {[%clk 0:02:57]}  Ne8 {[%clk 0:02:48]} 10. Bxg7 {[%clk 0:02:54]}  Nxg7 {[%clk 0:02:49]} 11. d4 {[%clk 0:02:54]}  e5 {[%clk 0:02:42]} 12. dxe5 {[%clk 0:02:50]}  Nxe5 {[%clk 0:02:38]} 13. Rd1 {[%clk 0:02:40]}  Qf6 {[%clk 0:02:25]} 14. Nc3 {[%clk 0:02:27]}  Rad8 {[%clk 0:02:02]} 15. Nd5 {[%clk 0:02:16]}  Nxf3+ {[%clk 0:01:44]} 16. Qxf3 {[%clk 0:02:14]}  Qe5 {[%clk 0:01:43]} 17. Qc3 {[%clk 0:02:10]}  Ne6 {[%clk 0:01:36]} 18. Nf6+ {[%clk 0:01:56]}  Kg7 {[%clk 0:01:11]} 19. Qxe5 {[%clk 0:01:54]}  dxe5 {[%clk 0:01:12]} 20. Nd7 {[%clk 0:01:54]}  Rfe8 {[%clk 0:00:45]} 21. Nxe5 {[%clk 0:01:52]}  Nd4 {[%clk 0:00:37]} 22. Nd3 {[%clk 0:01:49]}  Ne2+ {[%clk 0:00:37]} 23. Kf1 {[%clk 0:01:47]}  Nc3 {[%clk 0:00:37]} 24. Rd2 {[%clk 0:01:44]}  Nxe4 {[%clk 0:00:35]} 25. Rdd1 {[%clk 0:01:43]}  Nc3 {[%clk 0:00:31]} 26. Rd2 {[%clk 0:01:29]}  Re7 {[%clk 0:00:22]} 27. Rc1 {[%clk 0:01:25]}  Ne4 {[%clk 0:00:21]} 28. Rdd1 {[%clk 0:01:16]}  Red7 {[%clk 0:00:20]} 29. Nb2 {[%clk 0:01:12]}  Nd2+ {[%clk 0:00:17]} 30. Kg1 {[%clk 0:00:57]}  f5 {[%clk 0:00:17]} 31. f3 {[%clk 0:00:54]}  Kf6 {[%clk 0:00:12]} 32. Kf2 {[%clk 0:00:52]}  b6 {[%clk 0:00:10]} 33. g3 {[%clk 0:00:44]}  Rd4 {[%clk 0:00:09]} 34. Kg2 {[%clk 0:00:41]}  R4d6 {[%clk 0:00:06]} 35. Rc2 {[%clk 0:00:36]}  Rd4 {[%clk 0:00:06]} 36. Re1 {[%clk 0:00:26]}  R4d6 {[%clk 0:00:04]} 37. Re2 {[%clk 0:00:23]}  Nb1 {[%clk 0:00:00]} 38. Na4 {[%clk 0:00:15]} 1-0


[Site "https://www.chess.com"]

[Event "Titled Tuesday Blitz May 23 Early 2023"]
[White "Zampronha, Wladimir Camilo"]
[Black "Mostbauer, Florian"]
[WhiteFideId "2103087"]
[BlackFideId "1626671"]
[WhiteElo "2176"]
[BlackElo "2234"]
[Result "0-1"]
[Round "04"]
[TimeControl "180+2"]
[Date "2023.05.23"]
[WhiteClock "0:00:00"]
[BlackClock "0:00:19"]

1. e4 {[%clk 0:03:00]}  c6 {[%clk 0:02:59]} 2. d4 {[%clk 0:03:00]}  d5 {[%clk 0:02:59]} 3. e5 {[%clk 0:03:00]}  Bf5 {[%clk 0:02:59]} 4. Nf3 {[%clk 0:03:01]}  e6 {[%clk 0:02:59]} 5. Be2 {[%clk 0:03:01]}  c5 {[%clk 0:02:59]} 6. Be3 {[%clk 0:03:00]}  Qb6 {[%clk 0:02:58]} 7. Nc3 {[%clk 0:02:57]}  Nc6 {[%clk 0:02:57]} 8. dxc5 {[%clk 0:02:07]}  Bxc5 {[%clk 0:02:53]} 9. Bxc5 {[%clk 0:02:04]}  Qxc5 {[%clk 0:02:54]} 10. O-O {[%clk 0:01:58]}  Nge7 {[%clk 0:02:54]} 11. Nb5 {[%clk 0:01:57]}  O-O {[%clk 0:02:48]} 12. Nbd4 {[%clk 0:01:55]}  Rac8 {[%clk 0:02:37]} 13. Nxf5 {[%clk 0:01:48]}  Nxf5 {[%clk 0:02:36]} 14. Bd3 {[%clk 0:01:48]}  Nfe7 {[%clk 0:02:21]} 15. Re1 {[%clk 0:01:41]}  Nb4 {[%clk 0:02:16]} 16. c3 {[%clk 0:01:37]}  Nxd3 {[%clk 0:02:15]} 17. Qxd3 {[%clk 0:01:37]}  Qc4 {[%clk 0:02:16]} 18. Qxc4 {[%clk 0:01:27]}  Rxc4 {[%clk 0:02:17]} 19. Nd4 {[%clk 0:01:28]}  a6 {[%clk 0:02:15]} 20. g3 {[%clk 0:01:25]}  Rfc8 {[%clk 0:02:14]} 21. Rad1 {[%clk 0:01:23]}  Nc6 {[%clk 0:02:12]} 22. Nxc6 {[%clk 0:01:15]}  R8xc6 {[%clk 0:02:11]} 23. Re2 {[%clk 0:01:12]}  b5 {[%clk 0:02:11]} 24. a3 {[%clk 0:01:11]}  g5 {[%clk 0:02:08]} 25. h3 {[%clk 0:01:06]}  Kg7 {[%clk 0:02:07]} 26. Kg2 {[%clk 0:01:05]}  Kg6 {[%clk 0:02:07]} 27. Rd4 {[%clk 0:00:55]}  Rxd4 {[%clk 0:02:04]} 28. cxd4 {[%clk 0:00:56]}  Rc4 {[%clk 0:02:02]} 29. Rd2 {[%clk 0:00:56]}  a5 {[%clk 0:02:01]} 30. g4 {[%clk 0:00:54]}  h5 {[%clk 0:02:01]} 31. Kg3 {[%clk 0:00:52]}  h4+ {[%clk 0:01:56]} 32. Kf3 {[%clk 0:00:51]}  b4 {[%clk 0:01:53]} 33. axb4 {[%clk 0:00:49]}  Rxb4 {[%clk 0:01:54]} 34. Ke2 {[%clk 0:00:42]}  Rb3 {[%clk 0:01:53]} 35. f3 {[%clk 0:00:42]}  a4 {[%clk 0:01:53]} 36. Rc2 {[%clk 0:00:40]}  f6 {[%clk 0:01:50]} 37. exf6 {[%clk 0:00:38]}  Kxf6 {[%clk 0:01:51]} 38. Rd2 {[%clk 0:00:38]}  e5 {[%clk 0:01:51]} 39. dxe5+ {[%clk 0:00:37]}  Kxe5 {[%clk 0:01:52]} 40. Kf2 {[%clk 0:00:34]}  d4 {[%clk 0:01:49]} 41. Ke2 {[%clk 0:00:27]}  Kd5 {[%clk 0:01:29]} 42. Kf2 {[%clk 0:00:26]}  Kc4 {[%clk 0:01:22]} 43. Ke2 {[%clk 0:00:26]}  Re3+ {[%clk 0:01:18]} 44. Kf2 {[%clk 0:00:26]}  Rd3 {[%clk 0:00:56]} 45. Rxd3 {[%clk 0:00:19]}  Kxd3 {[%clk 0:00:57]} 46. f4 {[%clk 0:00:20]}  gxf4 {[%clk 0:00:53]} 47. g5 {[%clk 0:00:21]}  Kc2 {[%clk 0:00:53]} 48. g6 {[%clk 0:00:21]}  d3 {[%clk 0:00:54]} 49. g7 {[%clk 0:00:22]}  d2 {[%clk 0:00:54]} 50. g8=Q {[%clk 0:00:22]}  d1=Q {[%clk 0:00:55]} 51. Qc4+ {[%clk 0:00:20]}  Kxb2 {[%clk 0:00:49]} 52. Qxf4 {[%clk 0:00:15]}  a3 {[%clk 0:00:41]} 53. Qf6+ {[%clk 0:00:15]}  Kb1 {[%clk 0:00:38]} 54. Qxh4 {[%clk 0:00:11]}  Qc2+ {[%clk 0:00:35]} 55. Kf3 {[%clk 0:00:11]}  a2 {[%clk 0:00:35]} 56. Qb4+ {[%clk 0:00:09]}  Kc1 {[%clk 0:00:31]} 57. Qa3+ {[%clk 0:00:09]}  Kd1 {[%clk 0:00:26]} 58. Qd6+ {[%clk 0:00:04]}  Qd2 {[%clk 0:00:26]} 59. Qa3 {[%clk 0:00:02]}  Qd5+ {[%clk 0:00:20]} 60. Kg3 {[%clk 0:00:00]}  Qe5+ {[%clk 0:00:19]} 0-1


[Site "https://www.chess.com"]

[Event "Titled Tuesday Blitz May 23 Early 2023"]
[White "Omariev, Maksim"]
[Black "Fajdetic, Hrvoje"]
[WhiteFideId "4193423"]
[BlackFideId "14501945"]
[WhiteElo "2497"]
[BlackElo "2185"]
[Result "0-1"]
[Round "04"]
[TimeControl "180+2"]
[Date "2023.05.23"]
[WhiteClock "0:00:06"]
[BlackClock "0:00:07"]

1. g4 {[%clk 0:02:56]}  h5 {[%clk 0:02:58]} 2. g5 {[%clk 0:02:53]}  g6 {[%clk 0:02:58]} 3. d4 {[%clk 0:02:53]}  d5 {[%clk 0:02:57]} 4. Bg2 {[%clk 0:02:53]}  e6 {[%clk 0:02:55]} 5. c4 {[%clk 0:02:52]}  c6 {[%clk 0:02:55]} 6. Nc3 {[%clk 0:02:52]}  Ne7 {[%clk 0:02:54]} 7. Nf3 {[%clk 0:02:41]}  Bg7 {[%clk 0:02:52]} 8. Qd3 {[%clk 0:02:33]}  O-O {[%clk 0:02:47]} 9. Bf4 {[%clk 0:02:28]}  Nd7 {[%clk 0:02:34]} 10. e4 {[%clk 0:02:18]}  dxc4 {[%clk 0:02:31]} 11. Qxc4 {[%clk 0:02:18]}  b5 {[%clk 0:02:25]} 12. Qd3 {[%clk 0:02:03]}  e5 {[%clk 0:02:17]} 13. Be3 {[%clk 0:01:47]}  exd4 {[%clk 0:02:12]} 14. Bxd4 {[%clk 0:01:48]}  Ne5 {[%clk 0:02:09]} 15. Nxe5 {[%clk 0:01:41]}  Bxe5 {[%clk 0:02:08]} 16. O-O-O {[%clk 0:01:39]}  Bxd4 {[%clk 0:01:59]} 17. Qxd4 {[%clk 0:01:39]}  Qxd4 {[%clk 0:01:59]} 18. Rxd4 {[%clk 0:01:40]}  Be6 {[%clk 0:01:59]} 19. Rhd1 {[%clk 0:01:34]}  a5 {[%clk 0:01:53]} 20. Kb1 {[%clk 0:01:33]}  Rab8 {[%clk 0:01:39]} 21. f4 {[%clk 0:01:28]}  c5 {[%clk 0:01:24]} 22. Rd6 {[%clk 0:01:24]}  b4 {[%clk 0:01:08]} 23. Na4 {[%clk 0:01:10]}  c4 {[%clk 0:01:06]} 24. Nc5 {[%clk 0:01:06]}  Bg4 {[%clk 0:01:05]} 25. Rc1 {[%clk 0:01:03]}  c3 {[%clk 0:01:02]} 26. bxc3 {[%clk 0:01:02]}  bxc3+ {[%clk 0:01:02]} 27. Ka1 {[%clk 0:01:03]}  Rb2 {[%clk 0:00:59]} 28. Bf1 {[%clk 0:00:55]}  Rfb8 {[%clk 0:00:52]} 29. h3 {[%clk 0:00:30]}  Bf3 {[%clk 0:00:27]} 30. Bc4 {[%clk 0:00:15]}  Rc8 {[%clk 0:00:17]} 31. Nd3 {[%clk 0:00:05]}  Rxc4 {[%clk 0:00:13]} 32. Nxb2 {[%clk 0:00:05]}  cxb2+ {[%clk 0:00:14]} 33. Kxb2 {[%clk 0:00:06]}  Rxe4 {[%clk 0:00:13]} 34. Rc7 {[%clk 0:00:04]}  Nf5 {[%clk 0:00:12]} 35. Rf6 {[%clk 0:00:03]}  Re7 {[%clk 0:00:11]} 36. Rxe7 {[%clk 0:00:02]}  Nxe7 {[%clk 0:00:12]} 37. Ra6 {[%clk 0:00:03]}  Nd5 {[%clk 0:00:10]} 38. Rxa5 {[%clk 0:00:02]}  Nxf4 {[%clk 0:00:11]} 39. h4 {[%clk 0:00:03]}  Ng2 {[%clk 0:00:10]} 40. Ra4 {[%clk 0:00:03]}  Kg7 {[%clk 0:00:09]} 41. Rb4 {[%clk 0:00:03]}  Bg4 {[%clk 0:00:09]} 42. a4 {[%clk 0:00:03]}  Nxh4 {[%clk 0:00:09]} 43. a5 {[%clk 0:00:03]}  Nf5 {[%clk 0:00:09]} 44. a6 {[%clk 0:00:04]}  Bf3 {[%clk 0:00:10]} 45. a7 {[%clk 0:00:04]}  h4 {[%clk 0:00:10]} 46. Rf4 {[%clk 0:00:02]}  Bd5 {[%clk 0:00:09]} 47. Kc3 {[%clk 0:00:02]}  h3 {[%clk 0:00:09]} 48. Rf2 {[%clk 0:00:02]}  Nd6 {[%clk 0:00:07]} 49. Kd4 {[%clk 0:00:01]}  Ba8 {[%clk 0:00:07]} 50. Kc5 {[%clk 0:00:01]}  Ne4+ {[%clk 0:00:07]} 51. Kb6 {[%clk 0:00:01]}  Nxf2 {[%clk 0:00:08]} 52. Kc7 {[%clk 0:00:02]}  Bf3 {[%clk 0:00:08]} 53. Kb8 {[%clk 0:00:02]}  h2 {[%clk 0:00:08]} 54. a8=Q {[%clk 0:00:02]}  Bxa8 {[%clk 0:00:08]} 55. Kc8 {[%clk 0:00:03]}  h1=Q {[%clk 0:00:08]} 56. Kd8 {[%clk 0:00:04]}  Qb7 {[%clk 0:00:07]} 57. Ke8 {[%clk 0:00:05]}  Ne4 {[%clk 0:00:07]} 58. Kd8 {[%clk 0:00:05]}  Nc5 {[%clk 0:00:07]} 59. Ke8 {[%clk 0:00:06]}  Qd7# {[%clk 0:00:07]} 0-1


[Site "https://www.chess.com"]

[Event "Titled Tuesday Blitz May 23 Early 2023"]
[White "mohsengabr2002"]
[Black "Trakru, Rohun"]
[BlackFideId "2097613"]
[WhiteElo "2290"]
[BlackElo "1852"]
[Result "1-0"]
[Round "04"]
[TimeControl "180+2"]
[Date "2023.05.23"]
[WhiteClock "0:01:03"]
[BlackClock "0:00:26"]

1. e4 {[%clk 0:03:00]}  c6 {[%clk 0:02:55]} 2. d3 {[%clk 0:02:59]}  d5 {[%clk 0:02:56]} 3. Nd2 {[%clk 0:02:58]}  g6 {[%clk 0:02:54]} 4. g3 {[%clk 0:02:58]}  Bg7 {[%clk 0:02:54]} 5. Bg2 {[%clk 0:02:59]}  d4 {[%clk 0:02:47]} 6. f4 {[%clk 0:02:58]}  c5 {[%clk 0:02:47]} 7. Ngf3 {[%clk 0:02:58]}  Nc6 {[%clk 0:02:45]} 8. O-O {[%clk 0:02:57]}  e5 {[%clk 0:02:44]} 9. Nc4 {[%clk 0:02:54]}  Bg4 {[%clk 0:02:16]} 10. h3 {[%clk 0:02:53]}  Bxf3 {[%clk 0:02:15]} 11. Qxf3 {[%clk 0:02:53]}  Nge7 {[%clk 0:02:05]} 12. f5 {[%clk 0:02:52]}  f6 {[%clk 0:02:03]} 13. fxg6 {[%clk 0:02:42]}  hxg6 {[%clk 0:02:04]} 14. g4 {[%clk 0:02:40]}  b5 {[%clk 0:01:52]} 15. Nd2 {[%clk 0:02:38]}  Rf8 {[%clk 0:01:42]} 16. g5 {[%clk 0:02:33]}  f5 {[%clk 0:01:29]} 17. exf5 {[%clk 0:02:29]}  gxf5 {[%clk 0:01:30]} 18. Nb3 {[%clk 0:02:27]}  Qd6 {[%clk 0:01:29]} 19. Qh5+ {[%clk 0:02:23]}  Kd7 {[%clk 0:01:29]} 20. a4 {[%clk 0:01:56]}  a6 {[%clk 0:01:25]} 21. axb5 {[%clk 0:01:56]}  axb5 {[%clk 0:01:26]} 22. Rxa8 {[%clk 0:01:56]}  Rxa8 {[%clk 0:01:27]} 23. Qf7 {[%clk 0:01:51]}  Bh8 {[%clk 0:01:21]} 24. Rxf5 {[%clk 0:01:48]}  c4 {[%clk 0:01:17]} 25. Nd2 {[%clk 0:01:27]}  Ra1 {[%clk 0:01:15]} 26. Rf1 {[%clk 0:01:27]}  cxd3 {[%clk 0:00:56]} 27. cxd3 {[%clk 0:01:27]}  Qg6 {[%clk 0:00:55]} 28. Qf3 {[%clk 0:01:16]}  Qg8 {[%clk 0:00:44]} 29. h4 {[%clk 0:01:13]}  Kc7 {[%clk 0:00:39]} 30. Ne4 {[%clk 0:01:12]}  Kb6 {[%clk 0:00:35]} 31. Nf6 {[%clk 0:01:03]}  Bxf6 {[%clk 0:00:26]} 32. gxf6 {[%clk 0:01:03]} 1-0


[Site "https://www.chess.com"]